[Event "*** Titled Tuesday Blitz"]
[Site "Chess.com"]
[Date "2020.11.24"]
[Round "3"]
[White "FontVella8"]
[Black "K_A_S_T_O_R"]
[Result "0-1"]
[WhiteElo "2538"]
[BlackElo "2794"]
[TimeControl "180+1"]
[EndTime "10:46:11 PST"]
[Termination "K_A_S_T_O_R won by resignation"]

1. e4 {[%clk 0:03:00.9]} 1... c5 {[%clk 0:02:59.4]} 2. Nf3 {[%clk 0:03:00.7]}
2... d6 {[%clk 0:02:59.7]} 3. d4 {[%clk 0:03:00.6]} 3... cxd4 {[%clk 0:02:59.8]}
4. Qxd4 {[%clk 0:03:01.1]} 4... Nc6 {[%clk 0:02:57.1]} 5. Qe3 {[%clk 0:03:00.6]}
5... g6 {[%clk 0:02:52.9]} 6. Be2 {[%clk 0:03:00.8]} 6... Bg7 {[%clk 0:02:44.5]}
7. O-O {[%clk 0:03:00.1]} 7... Nf6 {[%clk 0:02:44.5]} 8. Rd1 {[%clk 0:03:00.3]}
8... Ng4 {[%clk 0:02:34.6]} 9. Qb3 {[%clk 0:02:42.8]} 9... O-O {[%clk
0:02:29.7]} 10. h3 {[%clk 0:02:40.9]} 10... Nge5 {[%clk 0:02:29.1]} 11. Nxe5
{[%clk 0:02:32.3]} 11... Bxe5 {[%clk 0:02:27.9]} 12. Be3 {[%clk 0:02:28.4]}
12... Be6 {[%clk 0:02:10.3]} 13. Qa3 {[%clk 0:02:18.1]} 13... Qc7 {[%clk
0:01:41.6]} 14. Nc3 {[%clk 0:02:16.4]} 14... Rfc8 {[%clk 0:01:41.4]} 15. Nd5
{[%clk 0:02:10]} 15... Bxd5 {[%clk 0:01:40.4]} 16. exd5 {[%clk 0:02:10]} 16...
Na5 {[%clk 0:01:36.1]} 17. c3 {[%clk 0:01:54.7]} 17... Nc4 {[%clk 0:01:32.6]}
18. Bxc4 {[%clk 0:01:49.5]} 18... Qxc4 {[%clk 0:01:33.5]} 19. Qb3 {[%clk
0:01:50]} 19... b5 {[%clk 0:01:32.7]} 20. Bd4 {[%clk 0:01:46]} 20... Bf6 {[%clk
0:01:28.1]} 21. Bxf6 {[%clk 0:01:25]} 21... exf6 {[%clk 0:01:27]} 22. Rd4 {[%clk
0:01:25.5]} 22... Qe2 {[%clk 0:01:21.3]} 23. Rad1 {[%clk 0:01:20.4]} 23... a6
{[%clk 0:01:20.6]} 24. R4d2 {[%clk 0:01:18.5]} 24... Qe5 {[%clk 0:01:20.5]} 25.
a4 {[%clk 0:01:09.8]} 25... Rab8 {[%clk 0:01:17.3]} 26. axb5 {[%clk 0:01:04.6]}
26... axb5 {[%clk 0:01:12]} 27. Rd4 {[%clk 0:01:01.4]} 27... Rc5 {[%clk
0:01:10.6]} 28. Qa3 {[%clk 0:00:57.5]} 28... Re8 {[%clk 0:01:07.9]} 29. Qa6
{[%clk 0:00:54.9]} 29... Kg7 {[%clk 0:01:02.2]} 30. g3 {[%clk 0:00:52.9]} 30...
h5 {[%clk 0:00:59.5]} 31. h4 {[%clk 0:00:52.8]} 31... Rb8 {[%clk 0:00:51.3]} 32.
Qa7 {[%clk 0:00:50.3]} 32... Rbc8 {[%clk 0:00:49.9]} 33. Qa6 {[%clk 0:00:48.9]}
33... Qe7 {[%clk 0:00:48.3]} 34. Rb4 {[%clk 0:00:43.7]} 34... Qe2 {[%clk
0:00:43.3]} 35. Rbd4 {[%clk 0:00:25.5]} 35... Qe5 {[%clk 0:00:34]} 36. Rb4
{[%clk 0:00:21.9]} 36... Rb8 {[%clk 0:00:32.1]} 37. Rbd4 {[%clk 0:00:20.3]}
37... Re8 {[%clk 0:00:28.2]} 38. Rb4 {[%clk 0:00:19.6]} 38... Rb8 {[%clk
0:00:27.9]} 39. Rbd4 {[%clk 0:00:19.6]} 39... f5 {[%clk 0:00:28.3]} 40. Kg2
{[%clk 0:00:19.2]} 40... Re8 {[%clk 0:00:25.6]} 41. Qb6 {[%clk 0:00:16.5]} 41...
Re7 {[%clk 0:00:24.1]} 42. Qa6 {[%clk 0:00:15.2]} 42... Rd7 {[%clk 0:00:21.9]}
43. Qb6 {[%clk 0:00:15.2]} 43... Qe2 {[%clk 0:00:17.3]} 44. R1d2 {[%clk
0:00:13.9]} 44... Qe5 {[%clk 0:00:17.3]} 45. R2d3 {[%clk 0:00:11.4]} 45... Re7
{[%clk 0:00:16.6]} 46. Re3 {[%clk 0:00:11.1]} 46... Qf6 {[%clk 0:00:16.9]} 47.
Rxe7 {[%clk 0:00:09.3]} 47... Qxe7 {[%clk 0:00:17.8]} 48. Qa5 {[%clk 0:00:07.5]}
48... Qb7 {[%clk 0:00:16.8]} 49. Qb4 {[%clk 0:00:07.3]} 49... Rxd5 {[%clk
0:00:14]} 50. Rxd5 {[%clk 0:00:07.7]} 50... Qxd5+ {[%clk 0:00:14.9]} 51. Kg1
{[%clk 0:00:08.4]} 51... Qc5 {[%clk 0:00:15.2]} 52. Qf4 {[%clk 0:00:07.4]} 52...
Qe5 {[%clk 0:00:14.2]} 53. Qd2 {[%clk 0:00:07.1]} 53... d5 {[%clk 0:00:13]} 54.
Qd3 {[%clk 0:00:06.5]} 54... Qe1+ {[%clk 0:00:12.2]} 55. Qf1 {[%clk 0:00:02.1]}
55... Qxf1+ {[%clk 0:00:10.8]} 56. Kxf1 {[%clk 0:00:03]} 56... Kf6 {[%clk
0:00:11.2]} 57. Ke2 {[%clk 0:00:03.9]} 57... Ke5 {[%clk 0:00:11.7]} 58. Ke3
{[%clk 0:00:04.5]} 58... f4+ {[%clk 0:00:07.3]} 59. Kd3 {[%clk 0:00:01.5]} 59...
fxg3 {[%clk 0:00:06.9]} 60. fxg3 {[%clk 0:00:02.4]} 60... f6 {[%clk 0:00:07.4]}
61. Ke3 {[%clk 0:00:02.7]} 61... g5 {[%clk 0:00:07.4]} 62. Kd3 {[%clk
0:00:01.3]} 62... gxh4 {[%clk 0:00:06.9]} 63. gxh4 {[%clk 0:00:02.2]} 63... f5
{[%clk 0:00:07.3]} 64. Ke3 {[%clk 0:00:03.1]} 64... f4+ {[%clk 0:00:07.8]} 65.
Ke2 {[%clk 0:00:02.1]} 65... Ke4 {[%clk 0:00:08]} 66. Kd2 {[%clk 0:00:01.4]}
66... f3 {[%clk 0:00:08]} 0-1

[Event "*** Titled Tuesday Blitz"]
[Site "Chess.com"]
[Date "2020.11.24"]
[Round "3"]
[White "hansen"]
[Black "PavelShkapenko"]
[Result "1-0"]
[WhiteElo "2937"]
[BlackElo "2690"]
[TimeControl "180+1"]
[EndTime "10:46:15 PST"]
[Termination "hansen won by resignation"]

1. e4 {[%clk 0:02:57.6]} 1... e5 {[%clk 0:02:59.6]} 2. Nf3 {[%clk 0:02:57.8]}
2... Nc6 {[%clk 0:02:59.9]} 3. Bb5 {[%clk 0:02:58.1]} 3... Bc5 {[%clk
0:02:59.2]} 4. c3 {[%clk 0:02:24.3]} 4... f5 {[%clk 0:02:56.9]} 5. d4 {[%clk
0:02:15.6]} 5... fxe4 {[%clk 0:02:56.4]} 6. Bxc6 {[%clk 0:02:10.6]} 6... dxc6
{[%clk 0:02:39.6]} 7. Nxe5 {[%clk 0:02:09.9]} 7... Qd5 {[%clk 0:02:35.3]} 8.
Qh5+ {[%clk 0:01:44.3]} 8... g6 {[%clk 0:02:34.8]} 9. Qe2 {[%clk 0:01:44.9]}
9... Bd6 {[%clk 0:02:26.1]} 10. Bf4 {[%clk 0:01:29.9]} 10... Nf6 {[%clk
0:02:23.7]} 11. Nd2 {[%clk 0:01:25.4]} 11... O-O {[%clk 0:02:19.4]} 12. O-O
{[%clk 0:01:23]} 12... Ng4 {[%clk 0:02:02.5]} 13. Bg3 {[%clk 0:01:02.1]} 13...
Nxe5 {[%clk 0:01:50.9]} 14. dxe5 {[%clk 0:01:02.3]} 14... Bxe5 {[%clk
0:01:51.1]} 15. Bxe5 {[%clk 0:01:00.9]} 15... Qxe5 {[%clk 0:01:51.3]} 16. Qxe4
{[%clk 0:01:01.5]} 16... Qxe4 {[%clk 0:01:49.5]} 17. Nxe4 {[%clk 0:01:01.6]}
17... Bf5 {[%clk 0:01:49.4]} 18. Ng3 {[%clk 0:00:45.6]} 18... Rad8 {[%clk
0:01:45.2]} 19. f3 {[%clk 0:00:41.4]} 19... Be6 {[%clk 0:01:38.7]} 20. Rfd1
{[%clk 0:00:37.6]} 20... Rxd1+ {[%clk 0:01:32.8]} 21. Rxd1 {[%clk 0:00:37.4]}
21... Bxa2 {[%clk 0:01:33.2]} 22. Ra1 {[%clk 0:00:32.3]} 22... Bc4 {[%clk
0:01:31.7]} 23. Rxa7 {[%clk 0:00:32]} 23... Ba6 {[%clk 0:01:18.6]} 24. Ne4
{[%clk 0:00:32.3]} 24... Rd8 {[%clk 0:01:18.5]} 25. Kf2 {[%clk 0:00:31.4]} 25...
Rd1 {[%clk 0:01:12.3]} 26. Ra8+ {[%clk 0:00:27.3]} 26... Kg7 {[%clk 0:01:11.8]}
27. Rc8 {[%clk 0:00:27]} 27... Rb1 {[%clk 0:01:08.7]} 28. Rxc7+ {[%clk
0:00:24.9]} 28... Kf8 {[%clk 0:01:02.4]} 29. b4 {[%clk 0:00:24.6]} 29... h5
{[%clk 0:00:59.9]} 30. h4 {[%clk 0:00:24.8]} 30... Rb2+ {[%clk 0:00:58.9]} 31.
Kg3 {[%clk 0:00:23.4]} 31... Bf1 {[%clk 0:00:59.1]} 32. Rxb7 {[%clk 0:00:22.7]}
32... Rxg2+ {[%clk 0:00:58.1]} 33. Kf4 {[%clk 0:00:23.1]} 33... Bd3 {[%clk
0:00:53.9]} 34. Ng5 {[%clk 0:00:20.4]} 34... Rc2 {[%clk 0:00:34.9]} 35. Nh7+
{[%clk 0:00:20.6]} 35... Ke8 {[%clk 0:00:32.2]} 36. Nf6+ {[%clk 0:00:21]} 36...
Kf8 {[%clk 0:00:32.6]} 37. Nd7+ {[%clk 0:00:16.8]} 37... Ke8 {[%clk 0:00:31.2]}
38. Ne5 {[%clk 0:00:15.2]} 38... Rxc3 {[%clk 0:00:25.1]} 39. Rc7 {[%clk
0:00:15.2]} 39... Bb5 {[%clk 0:00:20.2]} 40. Kg5 {[%clk 0:00:15]} 40... Kd8
{[%clk 0:00:17]} 41. Rd7+ {[%clk 0:00:10]} 41... Kc8 {[%clk 0:00:16.9]} 42. Rd4
{[%clk 0:00:10.3]} 42... Re3 {[%clk 0:00:15.9]} 43. f4 {[%clk 0:00:07.2]} 43...
Rg3+ {[%clk 0:00:15.9]} 44. Kf6 {[%clk 0:00:07.7]} 44... Rh3 {[%clk 0:00:15.3]}
45. Nxg6 {[%clk 0:00:07.7]} 45... Kc7 {[%clk 0:00:14.8]} 46. f5 {[%clk
0:00:08.1]} 46... c5 {[%clk 0:00:13.8]} 47. bxc5 {[%clk 0:00:07.7]} 47... Kc6
{[%clk 0:00:14.3]} 48. Nf4 {[%clk 0:00:04.5]} 48... Rxh4 {[%clk 0:00:13.4]} 49.
Ke5 {[%clk 0:00:03.9]} 49... Rg4 {[%clk 0:00:12.8]} 50. Rd6+ {[%clk 0:00:03.5]}
50... Kxc5 {[%clk 0:00:12.5]} 51. Ne6+ {[%clk 0:00:03.8]} 51... Kb4 {[%clk
0:00:12.6]} 52. f6 {[%clk 0:00:03.9]} 52... Be8 {[%clk 0:00:11.8]} 53. Rb6+
{[%clk 0:00:04.3]} 53... Kc4 {[%clk 0:00:11.2]} 54. Rb7 {[%clk 0:00:04.4]} 54...
h4 {[%clk 0:00:10.8]} 55. Re7 {[%clk 0:00:04.7]} 55... Rg8 {[%clk 0:00:10.8]}
56. Ng7 {[%clk 0:00:03.6]} 56... Bg6 {[%clk 0:00:10.5]} 57. Rc7+ {[%clk
0:00:03.9]} 57... Kd3 {[%clk 0:00:10.1]} 58. Kf4 {[%clk 0:00:04.5]} 58... Rf8
{[%clk 0:00:08.7]} 59. Kg5 {[%clk 0:00:04.7]} 59... Bf7 {[%clk 0:00:08.9]} 60.
Rd7+ {[%clk 0:00:04.9]} 60... Ke3 {[%clk 0:00:08.7]} 61. Kxh4 {[%clk 0:00:05.2]}
61... Kf4 {[%clk 0:00:09.1]} 62. Re7 {[%clk 0:00:05.1]} 62... Ba2 {[%clk
0:00:07.6]} 63. Nh5+ {[%clk 0:00:03.8]} 63... Kf5 {[%clk 0:00:07]} 64. Rg7
{[%clk 0:00:03.3]} 64... Bf7 {[%clk 0:00:05.8]} 65. Ng3+ {[%clk 0:00:02.3]}
65... Kxf6 {[%clk 0:00:05.8]} 66. Rg5 {[%clk 0:00:02.6]} 66... Bg6 {[%clk
0:00:05.7]} 67. Kg4 {[%clk 0:00:02.9]} 67... Re8 {[%clk 0:00:05.8]} 68. Ra5
{[%clk 0:00:03]} 68... Rd8 {[%clk 0:00:06]} 69. Kf4 {[%clk 0:00:03.4]} 69...
Rd4+ {[%clk 0:00:05.7]} 70. Ke3 {[%clk 0:00:04]} 1-0

[Event "*** Titled Tuesday Blitz"]
[Site "Chess.com"]
[Date "2020.11.24"]
[Round "3"]
[White "AbdAlAgathos"]
[Black "louis198"]
[Result "0-1"]
[WhiteElo "2358"]
[BlackElo "2536"]
[TimeControl "180+1"]
[EndTime "10:46:18 PST"]
[Termination "louis198 won on time"]

1. e4 {[%clk 0:03:00.9]} 1... e6 {[%clk 0:03:00]} 2. d4 {[%clk 0:02:59]} 2... d5
{[%clk 0:02:57.4]} 3. Nd2 {[%clk 0:02:58.2]} 3... Nc6 {[%clk 0:02:57.1]} 4. Ngf3
{[%clk 0:02:57.8]} 4... Nf6 {[%clk 0:02:56.9]} 5. e5 {[%clk 0:02:56.7]} 5... Nd7
{[%clk 0:02:56.8]} 6. Bd3 {[%clk 0:02:57]} 6... Nb4 {[%clk 0:02:56.9]} 7. Be2
{[%clk 0:02:56.9]} 7... c5 {[%clk 0:02:57.5]} 8. c3 {[%clk 0:02:54.1]} 8... Nc6
{[%clk 0:02:57.4]} 9. O-O {[%clk 0:02:54.1]} 9... f6 {[%clk 0:02:56.6]} 10. exf6
{[%clk 0:02:53.3]} 10... Qxf6 {[%clk 0:02:56.2]} 11. Re1 {[%clk 0:02:50.6]}
11... Bd6 {[%clk 0:02:56.2]} 12. Nf1 {[%clk 0:02:48]} 12... O-O {[%clk
0:02:56.3]} 13. Ng3 {[%clk 0:02:46]} 13... c4 {[%clk 0:02:44.1]} 14. b3 {[%clk
0:02:37.5]} 14... b5 {[%clk 0:01:44]} 15. a4 {[%clk 0:02:34.7]} 15... b4 {[%clk
0:01:43.3]} 16. bxc4 {[%clk 0:02:23.4]} 16... bxc3 {[%clk 0:01:42.9]} 17. cxd5
{[%clk 0:01:51.7]} 17... exd5 {[%clk 0:01:42.1]} 18. Qb3 {[%clk 0:01:51.2]}
18... Nb6 {[%clk 0:01:42.1]} 19. Qxc3 {[%clk 0:01:45.9]} 19... Bb4 {[%clk
0:01:40.6]} 20. Qe3 {[%clk 0:01:34.7]} 20... Bxe1 {[%clk 0:01:40.4]} 21. Nxe1
{[%clk 0:01:34.9]} 21... Qxd4 {[%clk 0:01:30.3]} 22. Nc2 {[%clk 0:01:27.1]}
22... Qxe3 {[%clk 0:01:28.5]} 23. Bxe3 {[%clk 0:01:28]} 23... Nc4 {[%clk
0:01:15.7]} 24. Bc5 {[%clk 0:01:22.9]} 24... Re8 {[%clk 0:01:11.1]} 25. Bf3
{[%clk 0:01:20.9]} 25... Be6 {[%clk 0:01:11]} 26. Re1 {[%clk 0:01:04.5]} 26...
Bf7 {[%clk 0:01:10.2]} 27. Rd1 {[%clk 0:01:03.3]} 27... Rad8 {[%clk 0:01:08.9]}
28. Nf5 {[%clk 0:01:00.2]} 28... N4e5 {[%clk 0:00:46.4]} 29. Be2 {[%clk
0:00:53.1]} 29... Bg6 {[%clk 0:00:45.1]} 30. Ncd4 {[%clk 0:00:47.7]} 30... Nxd4
{[%clk 0:00:42.6]} 31. Nxd4 {[%clk 0:00:45.1]} 31... Nd7 {[%clk 0:00:42]} 32.
Bxa7 {[%clk 0:00:37.6]} 32... Ra8 {[%clk 0:00:41.4]} 33. Bf3 {[%clk 0:00:24.3]}
33... Rxa7 {[%clk 0:00:40.2]} 34. Bxd5+ {[%clk 0:00:24.8]} 34... Bf7 {[%clk
0:00:40.2]} 35. Bc6 {[%clk 0:00:23.8]} 35... Rc8 {[%clk 0:00:27.1]} 36. Bb5
{[%clk 0:00:20.9]} 36... Nf8 {[%clk 0:00:26.6]} 37. Nf5 {[%clk 0:00:20.7]} 37...
g6 {[%clk 0:00:23.5]} 38. Nd6 {[%clk 0:00:20.6]} 38... Rd8 {[%clk 0:00:23.7]}
39. Rd3 {[%clk 0:00:19.5]} 39... Re7 {[%clk 0:00:16.4]} 40. g4 {[%clk 0:00:18]}
40... Re6 {[%clk 0:00:15.2]} 41. Nxf7 {[%clk 0:00:15.9]} 41... Re1+ {[%clk
0:00:14.3]} 42. Kg2 {[%clk 0:00:15.3]} 42... Rxd3 {[%clk 0:00:14.5]} 43. Nh6+
{[%clk 0:00:13.5]} 43... Kg7 {[%clk 0:00:14.8]} 44. Bxd3 {[%clk 0:00:13.3]}
44... Kxh6 {[%clk 0:00:15.1]} 45. a5 {[%clk 0:00:12.6]} 45... Ra1 {[%clk
0:00:15.2]} 46. a6 {[%clk 0:00:12.8]} 46... Ne6 {[%clk 0:00:15.6]} 47. Kg3
{[%clk 0:00:11.3]} 47... Nc5 {[%clk 0:00:15.8]} 48. Be2 {[%clk 0:00:10.4]} 48...
Nxa6 {[%clk 0:00:15.6]} 49. h4 {[%clk 0:00:11.3]} 49... Kg7 {[%clk 0:00:15.5]}
50. f4 {[%clk 0:00:10.8]} 50... Nc5 {[%clk 0:00:16.4]} 51. g5 {[%clk 0:00:08.8]}
51... Ra3+ {[%clk 0:00:17.3]} 52. Kg4 {[%clk 0:00:08.6]} 52... Ne4 {[%clk
0:00:17.3]} 53. f5 {[%clk 0:00:08.5]} 53... Nf2+ {[%clk 0:00:16.2]} 54. Kf4
{[%clk 0:00:08.4]} 54... gxf5 {[%clk 0:00:15.7]} 55. Kxf5 {[%clk 0:00:08]} 55...
Rh3 {[%clk 0:00:16.3]} 56. h5 {[%clk 0:00:07]} 56... Re3 {[%clk 0:00:16.4]} 57.
Bc4 {[%clk 0:00:05.9]} 57... Rc3 {[%clk 0:00:15.4]} 58. h6+ {[%clk 0:00:02.8]}
58... Kf8 {[%clk 0:00:15]} 59. Be6 {[%clk 0:00:03.7]} 59... Rf3+ {[%clk
0:00:13]} 60. Ke5 {[%clk 0:00:03.5]} 60... Ke7 {[%clk 0:00:13.2]} 61. g6 {[%clk
0:00:03.4]} 61... hxg6 {[%clk 0:00:11.8]} 62. h7 {[%clk 0:00:03.4]} 62... Re3+
{[%clk 0:00:04.7]} 63. Kf4 {[%clk 0:00:03.2]} 63... Re4+ {[%clk 0:00:04.5]} 64.
Kg3 {[%clk 0:00:02]} 64... Nh1+ {[%clk 0:00:04.3]} 65. Kh3 {[%clk 0:00:01.5]}
65... Kxe6 {[%clk 0:00:04.2]} 66. h8=Q {[%clk 0:00:01.4]} 66... Nf2+ {[%clk
0:00:05.1]} 0-1

[Event "*** Titled Tuesday Blitz"]
[Site "Chess.com"]
[Date "2020.11.24"]
[Round "3"]
[White "enriquetejedor"]
[Black "Legendinunknown"]
[Result "0-1"]
[WhiteElo "2477"]
[BlackElo "2685"]
[TimeControl "180+1"]
[EndTime "10:46:20 PST"]
[Termination "Legendinunknown won on time"]

1. e4 {[%clk 0:03:00.9]} 1... c6 {[%clk 0:02:57.9]} 2. Nc3 {[%clk 0:03:01.1]}
2... d5 {[%clk 0:02:57.1]} 3. Nf3 {[%clk 0:03:02]} 3... Bg4 {[%clk 0:02:56.8]}
4. h3 {[%clk 0:03:02]} 4... Bxf3 {[%clk 0:02:56.5]} 5. Qxf3 {[%clk 0:03:02.9]}
5... e6 {[%clk 0:02:56.7]} 6. d4 {[%clk 0:03:02.3]} 6... dxe4 {[%clk 0:02:54.4]}
7. Qxe4 {[%clk 0:03:01.5]} 7... Nf6 {[%clk 0:02:53.5]} 8. Qd3 {[%clk 0:03:01.7]}
8... Bd6 {[%clk 0:02:49.2]} 9. g3 {[%clk 0:02:52.6]} 9... Nbd7 {[%clk 0:02:47]}
10. Bg2 {[%clk 0:02:46.6]} 10... O-O {[%clk 0:02:45.1]} 11. O-O {[%clk
0:02:46.3]} 11... e5 {[%clk 0:02:45.2]} 12. d5 {[%clk 0:02:45]} 12... Nc5 {[%clk
0:02:24.3]} 13. Qc4 {[%clk 0:02:33.9]} 13... cxd5 {[%clk 0:02:04.9]} 14. Nxd5
{[%clk 0:02:33.8]} 14... Nxd5 {[%clk 0:02:04.1]} 15. Qxd5 {[%clk 0:02:34]} 15...
Qc7 {[%clk 0:01:53.5]} 16. Be3 {[%clk 0:02:12.4]} 16... b6 {[%clk 0:01:38.3]}
17. Rad1 {[%clk 0:01:29]} 17... Rad8 {[%clk 0:01:33]} 18. Qc4 {[%clk 0:01:22.8]}
18... Qe7 {[%clk 0:01:26]} 19. Rd5 {[%clk 0:01:13.4]} 19... Ne6 {[%clk
0:00:51.2]} 20. Rfd1 {[%clk 0:01:08.7]} 20... Bc5 {[%clk 0:00:42.4]} 21. Re1
{[%clk 0:00:39.6]} 21... Qf6 {[%clk 0:00:33.1]} 22. Bxc5 {[%clk 0:00:30.7]}
22... Nxc5 {[%clk 0:00:32.4]} 23. Rexe5 {[%clk 0:00:27.3]} 23... Rxd5 {[%clk
0:00:31.1]} 24. Qxd5 {[%clk 0:00:26.6]} 24... Rd8 {[%clk 0:00:30.3]} 25. Qd4
{[%clk 0:00:15.5]} 25... h6 {[%clk 0:00:27.4]} 26. Qe3 {[%clk 0:00:11.7]} 26...
Ne6 {[%clk 0:00:21.3]} 27. c3 {[%clk 0:00:09.9]} 27... Rd1+ {[%clk 0:00:20.4]}
28. Kh2 {[%clk 0:00:10.1]} 28... Ra1 {[%clk 0:00:19.4]} 29. Bd5 {[%clk
0:00:09.5]} 29... Nc7 {[%clk 0:00:17.6]} 30. Be4 {[%clk 0:00:06.6]} 30... g6
{[%clk 0:00:16.6]} 31. Bd5 {[%clk 0:00:02.6]} 31... Nxd5 {[%clk 0:00:15.4]} 32.
Rxd5 {[%clk 0:00:03.5]} 32... Rxa2 {[%clk 0:00:15.6]} 33. Rd2 {[%clk 0:00:02.8]}
33... Ra1 {[%clk 0:00:14.8]} 34. Kg2 {[%clk 0:00:02]} 34... Kg7 {[%clk 0:00:15]}
35. Qd4 {[%clk 0:00:02.1]} 35... Ra2 {[%clk 0:00:14]} 36. Qxf6+ {[%clk
0:00:02.1]} 36... Kxf6 {[%clk 0:00:14.9]} 37. Kf3 {[%clk 0:00:02.8]} 37... Ke6
{[%clk 0:00:14.5]} 38. Ke3 {[%clk 0:00:03.4]} 38... a5 {[%clk 0:00:14.6]} 39.
Kd3 {[%clk 0:00:03.7]} 39... a4 {[%clk 0:00:14.8]} 40. Kc2 {[%clk 0:00:03.4]}
40... a3 {[%clk 0:00:15]} 41. Kb3 {[%clk 0:00:03]} 41... Rxb2+ {[%clk
0:00:15.1]} 42. Rxb2 {[%clk 0:00:03.1]} 42... axb2 {[%clk 0:00:16]} 43. Kxb2
{[%clk 0:00:04]} 43... Kd5 {[%clk 0:00:16.3]} 44. Kb3 {[%clk 0:00:03.7]} 44...
Kc5 {[%clk 0:00:16.6]} 45. c4 {[%clk 0:00:03.9]} 45... Kd4 {[%clk 0:00:15.9]}
46. Kb4 {[%clk 0:00:03.7]} 46... Kd3 {[%clk 0:00:16.1]} 47. Kb5 {[%clk
0:00:02.3]} 47... f5 {[%clk 0:00:14.4]} 48. h4 {[%clk 0:00:01.7]} 48... g5
{[%clk 0:00:12.9]} 49. h5 {[%clk 0:00:01.5]} 49... f4 {[%clk 0:00:12.8]} 50.
gxf4 {[%clk 0:00:01.5]} 50... gxf4 {[%clk 0:00:13.7]} 51. Kxb6 {[%clk
0:00:01.7]} 51... Kxc4 {[%clk 0:00:13.7]} 52. Kc6 {[%clk 0:00:02.6]} 52... Kd3
{[%clk 0:00:13.7]} 53. Kd5 {[%clk 0:00:03]} 53... Ke2 {[%clk 0:00:13.9]} 54. Ke5
{[%clk 0:00:02.5]} 54... f3 {[%clk 0:00:13.9]} 55. Kf5 {[%clk 0:00:02.3]} 55...
Kxf2 {[%clk 0:00:14.1]} 56. Kg6 {[%clk 0:00:03.2]} 56... Kg3 {[%clk 0:00:13.7]}
57. Kxh6 {[%clk 0:00:04.1]} 57... f2 {[%clk 0:00:14]} 58. Kg7 {[%clk 0:00:04.4]}
58... f1=Q {[%clk 0:00:14]} 59. h6 {[%clk 0:00:05.3]} 59... Qa1+ {[%clk
0:00:13.3]} 60. Kg8 {[%clk 0:00:05.3]} 60... Qa8+ {[%clk 0:00:12.2]} 61. Kg7
{[%clk 0:00:05.4]} 61... Qb7+ {[%clk 0:00:12.2]} 62. Kf8 {[%clk 0:00:05.3]}
62... Qc8+ {[%clk 0:00:11.3]} 63. Kg7 {[%clk 0:00:05.3]} 63... Qd7+ {[%clk
0:00:11.3]} 64. Kg8 {[%clk 0:00:05.9]} 64... Qe6+ {[%clk 0:00:11]} 65. Kg7
{[%clk 0:00:06.8]} 65... Qe5+ {[%clk 0:00:11.3]} 66. Kg8 {[%clk 0:00:07]} 66...
Qg5+ {[%clk 0:00:11.2]} 67. Kf7 {[%clk 0:00:06.3]} 67... Qxh6 {[%clk 0:00:11.2]}
0-1